bitfinex-derivatives/quotes_SOLF0:USTF0_20251219
["timestamp","ask_amount","ask_price","bid_price","bid_amount"]
[1766121857399,48.1,122.74,122.64,15.86]
[1766121857601,0.05784841,122.7,122.68,0.05701629]
[1766121859307,0.05784841,122.7,122.68,0.02701629]
[1766121859905,0.05784841,122.7,122.63,15.86]
[1766121861001,0.05784841,122.7,122.65,0.06066644]
[1766121863203,0.05784841,122.7,122.65,15.92066644]
[1766121864513,7.3384,122.73,122.65,15.92066644]
[1766121864709,7.3384,122.73,122.65,15.86]
[1766121865107,7.3387,122.72,122.65,15.86]
[1766121865307,7.3387,122.72,122.67,0.05334682]
[1766121865308,0.05862146,122.7,122.67,0.05334682]
[1766121866214,7.39842146,122.7,122.67,0.05334682]
[1766121867015,0.05862146,122.7,122.67,0.05334682]
[1766121869012,6.1993318,122.75,122.67,15.91334682]
[1766121869212,162.2622,122.76,122.67,15.86]
[1766121869417,54.3393318,122.76,122.67,15.86]
[1766121869711,48.14,122.76,122.67,15.86]
[1766121870105,0.05418962,122.73,122.7,0.05594118]
[1766121871611,7.39208962,122.73,122.7,0.05594118]
[1766121871811,7.39208962,122.73,122.65,15.86]
[1766121872008,7.3379,122.73,122.65,15.86]
[1766121872614,7.3385,122.72,122.65,15.86]
[1766121872914,0.05741849,122.7,122.67,0.05500918]
[1766121873218,54.3393318,122.74,122.67,15.91672959]
[1766121873517,48.14,122.74,122.67,15.91672959]
[1766121874220,0.05273661,122.72,122.67,15.91672959]
[1766121877220,0.05273661,122.72,122.67,23.25812959]
[1766121877423,0.05273661,122.72,122.68,17.49]
[1766121878520,0.05273661,122.72,122.67,0.05672959]
[1766121879715,7.39133661,122.72,122.67,0.05672959]
[1766121883418,7.3392,122.71,122.64,65.63]
[1766121883622,9.89215307,122.71,122.65,17.49]
[1766121883921,7.3392,122.71,122.65,17.49]
[1766121884521,0.0542365,122.69,122.67,0.05830623]
[1766121895123,6.2535683,122.69,122.67,0.05830623]
[1766121895329,0.0542365,122.69,122.67,0.05830623]
[1766121895534,6.2535683,122.69,122.67,0.05830623]
[1766121895836,0.0542365,122.69,122.67,0.05830623]
[1766121896138,6.1993318,122.68,122.67,0.05830623]
[1766121897223,0.0542365,122.69,122.67,0.05830623]
[1766121897428,5.77180249,122.71,122.67,17.54830623]
[1766121897623,8.32475556,122.72,122.67,17.54830623]
[1766121898531,5.8268348,122.71,122.67,17.54830623]
[1766121898732,5.8268348,122.71,122.67,0.05830623]
[1766121899637,13.1660348,122.71,122.67,0.05830623]
[1766121900133,5.77180249,122.7,122.67,0.05830623]
[1766121900326,5.77180249,122.69,122.63,17.49]
[1766121900728,5.77180249,122.69,122.59,163.84613811]
[1766121900729,2.55295307,122.66,122.59,18.90693811]
[1766121900934,2.55295307,122.64,122.59,17.49]
[1766121901137,8.32475556,122.64,122.59,17.49]
[1766121901438,0.05358291,122.63,122.6,0.05420321]
[1766121902233,2.55295307,122.68,122.6,20.09715628]
[1766121902436,2.55295307,122.68,122.6,20.04295307]
[1766121902638,2.55295307,122.69,122.6,20.04295307]
[1766121902831,7.48871169,122.7,122.63,17.55]
[1766121902832,7.3401,122.7,122.63,17.55]
[1766121903233,0.06131447,122.68,122.65,0.05335839]
[1766121906643,7.40231447,122.68,122.65,0.05335839]
[1766121907446,7.3415,122.67,122.65,0.05335839]
[1766121907647,0.06131447,122.68,122.61,17.84]
[1766121907648,2.61426754,122.68,122.61,17.84]
[1766121907843,2.55295307,122.68,122.61,17.84]
[1766121908539,0.05909061,122.66,122.63,0.05280464]
[1766121909547,6.31207853,122.66,122.63,0.05280464]
[1766121911051,7.3409,122.68,122.63,17.89280464]
[1766121911240,2.55295307,122.7,122.63,17.89280464]
[1766121911947,7.3403,122.69,122.63,17.89280464]
[1766121912347,0.06030394,122.67,122.63,17.89280464]
[1766121918154,0.00030394,122.67,122.63,17.89280464]
[1766121919047,7.3391,122.72,122.65,17.84]
[1766121919953,0.05880317,122.7,122.67,0.06180865]
[1766121921255,0.05880317,122.7,122.63,17.84]
[1766121922049,0.05880317,122.7,122.65,0.0570313]
[1766121922546,7.3403,122.69,122.65,0.0570313]
[1766121923256,13.56409787,122.69,122.65,0.0570313]
[1766121925164,6.22379787,122.68,122.65,0.0570313]
[1766121925562,5.77717436,122.73,122.66,20.39295307]
[1766121925864,5.77717436,122.75,122.68,20.39295307]
[1766121926561,0.05364664,122.73,122.7,0.05800711]
[1766121926963,0.05364664,122.73,122.66,17.84]
[1766121927270,119.90777436,122.75,122.66,20.39295307]
[1766121927966,0.05278962,122.72,122.69,0.05326785]
[1766121928762,7.39138962,122.72,122.69,0.05326785]
[1766121934272,0.00278962,122.72,122.69,17.89326785]
[1766121935378,0.00278962,122.72,122.69,0.00326785]
[1766121935976,7.3391,122.71,122.69,0.00326785]
[1766121937582,13.51560137,122.71,122.69,0.00326785]
[1766121938178,128.69346225,122.76,122.69,18.54326785]
[1766121938383,48.14,122.75,122.69,18.54326785]
[1766121938578,62.56035056,122.76,122.69,18.54326785]
[1766121939180,0.05312956,122.74,122.69,18.54326785]
[1766121939684,0.05312956,122.74,122.69,0.00326785]
[1766121940183,0.05312956,122.74,122.65,18.54]
[1766121940387,119.90977436,122.75,122.65,18.54]
[1766121940578,7.3385,122.72,122.65,18.54]
[1766121940988,0.05262933,122.7,122.67,0.05486283]
[1766121941285,0.05262933,122.7,122.67,0.05884903]
[1766121942883,7.39232933,122.7,122.67,0.05884903]
[1766121943071,0.05262933,122.7,122.62,18.54]
[1766121943274,114.1747,122.7,122.62,18.54]
[1766121943677,7.3415,122.67,122.62,18.54]
[1766121944189,0.05521372,122.66,122.63,0.0590621]
[1766121946988,0.05521372,122.66,122.63,18.5990621]
[1766121947192,55.4997,122.7,122.63,18.5990621]
[1766121947487,5.77717436,122.73,122.63,18.54]
[1766121947683,48.16,122.72,122.63,18.54]
[1766121948076,0.06179422,122.69,122.66,0.0592114]
[1766121948684,0.06179422,122.69,122.62,18.54]
[1766121948883,114.1577,122.72,122.62,18.54]
[1766121949083,119.93487436,122.72,122.62,18.54]
[1766121949280,127.42358605,122.72,122.62,18.54]
[1766121949484,7.341,122.68,122.62,18.54]
[1766121949888,0.06267725,122.66,122.64,0.05533006]
[1766121954998,6.14792248,122.69,122.64,18.59533006]
[1766121955202,48.16,122.71,122.64,18.59533006]
[1766121956093,0.05871925,122.69,122.64,0.05533006]
[1766121957597,7.3409,122.68,122.64,0.05533006]
[1766121957796,0.05871925,122.69,122.6,18.54]
[1766121958100,9.76991583,122.68,122.6,18.54]
[1766121958301,3.99274147,122.68,122.6,18.54]
[1766121958793,3.99274147,122.68,122.63,0.05672441]
[1766121958993,0.05311377,122.65,122.63,0.05672441]
[1766121962297,13.26588605,122.69,122.63,18.59672441]
[1766121962504,9.76991583,122.73,122.63,18.59672441]
[1766121962694,114.1559,122.72,122.63,18.54]
[1766121962999,123.88231159,122.71,122.63,18.54]
[1766121963196,7.3409,122.68,122.63,18.54]
[1766121963501,0.05242206,122.67,122.64,0.05743369]
[1766121966107,0.00242206,122.67,122.64,18.29743369]
[1766121972812,0.00242206,122.67,122.64,0.05743369]
[1766121974518,0.00242206,122.67,122.64,18.29743369]
[1766121979525,6.08311736,122.72,122.65,3.99274147]
[1766121979712,5.29921767,122.76,122.66,18.24]
[1766121979713,6.08311736,122.73,122.66,18.24]
[1766121980025,6.08311736,122.75,122.66,18.24]
[1766121980222,6.08311736,122.74,122.66,18.24]
[1766121980417,6.08311736,122.75,122.66,18.24]
[1766121980622,0.00086305,122.71,122.69,18.29767895]
[1766121980825,6.08311736,122.75,122.69,18.29767895]
[1766121981022,6.08311736,122.74,122.69,18.29767895]
[1766121981224,6.08311736,122.75,122.69,18.29767895]
[1766121981419,6.08311736,122.74,122.69,18.29767895]
[1766121981619,0.06261505,122.73,122.69,18.29767895]
[1766121986431,7.40051505,122.73,122.69,18.29767895]
[1766121986633,7.40051505,122.73,122.69,0.05767895]
[1766121986829,0.06261505,122.73,122.69,0.05767895]
[1766121987440,6.14573241,122.73,122.69,0.05767895]
[1766121987743,7.3386,122.72,122.69,0.05767895]
[1766121998046,0.06261505,122.73,122.69,19.83767895]
[1766122013363,0.00261505,122.73,122.69,19.83767895]
[1766122016562,0.00549742,122.75,122.7,19.78]
[1766122016761,1.3064762,122.76,122.7,19.78]
[1766122016956,1.3064762,122.76,122.7,22.33280183]
[1766122017362,5.72497012,122.79,122.72,19.78]
[1766122017868,0.05146032,122.77,122.74,19.83432626]
[1766122020160,0.05146032,122.77,122.74,0.05432626]
[1766122025372,2.55280183,122.75,122.7,20.56]
[1766122025570,9.92280183,122.75,122.7,20.56]
[1766122026368,2.55280183,122.71,122.66,20.39]
[1766122026670,2.55280183,122.71,122.58,114.2852]
[1766122026671,2.55280183,122.69,122.64,20.39]
[1766122027171,9.89310183,122.69,122.64,20.39]
[1766122027361,7.3403,122.69,122.64,20.39]
[1766122027561,9.89310183,122.69,122.64,20.39]
[1766122027766,0.05542941,122.68,122.65,0.05962629]
[1766122028676,2.55280183,122.67,122.62,20.39]
[1766122028979,9.95280183,122.67,122.6,68.53]
[1766122029175,2.55280183,122.65,122.6,68.53]
[1766122029677,0.05780465,122.64,122.61,0.05618119]
[1766122030370,6.04287238,122.68,122.61,20.44618119]
[1766122030675,2.55280183,122.68,122.61,20.44618119]
[1766122031265,2.55280183,122.7,122.61,22.99898302]
[1766122031467,0.00265405,122.67,122.64,20.44186751]
[1766122033881,0.00265405,122.67,122.64,0.05186751]
[1766122035482,0.00265405,122.67,122.64,20.44186751]
[1766122035984,0.00265405,122.67,122.64,0.05186751]
[1766122036588,2.55545588,122.67,122.64,0.05186751]
[1766122042186,0.00265405,122.67,122.64,0.05186751]
[1766122042386,0.00265405,122.67,122.64,20.44186751]
[1766122043276,0.00265405,122.67,122.64,0.05186751]
[1766122043986,7.34415405,122.67,122.64,0.05186751]
[1766122044989,10.28280183,122.66,122.6,68.53]
[1766122045287,10.28280183,122.66,122.6,20.39]
[1766122045884,0.05879752,122.64,122.62,0.05188882]
[1766122054194,10.42280183,122.68,122.62,20.44188882]
[1766122054586,2.55280183,122.68,122.62,20.44188882]
[1766122054786,65.98310183,122.7,122.62,20.44188882]
[1766122054990,65.98310183,122.7,122.62,20.39]
[1766122055293,0.05833332,122.67,122.65,0.05607364]
[1766122067802,0.05833332,122.67,122.61,19.73]
[1766122068003,8.09833332,122.67,122.61,19.73]
[1766122068406,8.09833332,122.67,122.57,1.41936536]
[1766122068407,8.05,122.65,122.57,1.41936536]
[1766122068611,10.62095604,122.63,122.56,19.73]
[1766122068799,0.05544191,122.61,122.58,0.05811359]
[1766122069005,6.01472724,122.64,122.58,19.78811359]
[1766122069309,7.3434,122.64,122.58,19.78811359]
[1766122069508,13.35812724,122.64,122.58,19.78811359]
[1766122069710,7.3434,122.64,122.58,19.78811359]
[1766122070216,0.05431485,122.62,122.58,19.78811359]
[1766122072513,6.06904209,122.62,122.58,19.78811359]
[1766122072714,0.05431485,122.62,122.58,19.78811359]
[1766122073218,6.06904209,122.62,122.58,19.78811359]
[1766122074220,0.05431485,122.62,122.58,19.78811359]
[1766122075315,0.05431485,122.62,122.58,0.05811359]
[1766122076418,6.80431485,122.62,122.58,0.05811359]
[1766122076620,6.80431485,122.62,122.54,67.91]
[1766122076621,12.76472724,122.61,122.54,67.91]
[1766122077012,6.75,122.61,122.54,67.91]
[1766122077519,6.75,122.61,122.55,19.73]
[1766122077719,6.75,122.61,122.54,48.18]
[1766122077720,6.01472724,122.62,122.56,19.78425465]
[1766122078221,64.88568328,122.63,122.56,19.78425465]
[1766122078424,7.3447,122.62,122.56,19.78425465]
[1766122078724,0.05360959,122.6,122.56,19.78425465]
[1766122080924,6.01472724,122.65,122.56,23.77521069]
[1766122081136,12.84472724,122.67,122.56,23.72095604]
[1766122081823,7.3415,122.67,122.61,19.73]
[1766122082017,10.00568328,122.7,122.61,19.73]
[1766122082220,11.7719211,122.73,122.63,19.73]
[1766122082418,246.9606211,122.74,122.63,19.73]
[1766122082812,246.9606211,122.74,122.67,0.05905766]
[1766122083023,0.05920539,122.7,122.67,0.05905766]
[1766122087330,6.98920539,122.7,122.63,19.81]
[1766122087815,7.3413,122.68,122.61,19.81]
[1766122088423,0.0559361,122.66,122.63,0.06155415]
[1766122090427,6.87,122.69,122.63,19.87155415]
[1766122091122,14.2104,122.69,122.63,19.87155415]
[1766122091325,0.05751987,122.67,122.63,19.87155415]
[1766122094726,7.3404,122.69,122.63,19.87155415]
[1766122094932,18.30045604,122.71,122.63,19.87155415]
[1766122095234,10.96095604,122.71,122.63,19.81]
[1766122095936,0.05481648,122.68,122.66,0.06001502]
[1766122096637,0.00481648,122.68,122.66,0.06001502]
[1766122100933,0.00481648,122.68,122.66,19.87001502]
[1766122109146,0.00481648,122.68,122.66,0.06001502]
[1766122112049,7.34571648,122.68,122.64,19.81]
[1766122112651,7.3416,122.67,122.64,19.81]
[1766122112846,7.3416,122.67,122.6,48.2]
[1766122113048,0.05728655,122.65,122.62,19.87237488]
[1766122113650,7.3416,122.67,122.62,19.87237488]
[1766122114351,7.3421,122.66,122.62,19.87237488]
[1766122114655,0.0526156,122.65,122.62,19.87237488]
[1766122117857,13.36472724,122.7,122.62,19.87237488]
[1766122118054,7.35,122.7,122.62,19.81]
[1766122119058,14.6897,122.7,122.65,0.06175389]
[1766122119557,14.6897,122.7,122.65,20.60175389]
[1766122122148,20.70442724,122.7,122.65,20.60175389]
[1766122123158,6.01472724,122.69,122.65,20.60175389]
[1766122124157,6.01472724,122.68,122.65,20.60175389]
[1766122124358,11.7719211,122.69,122.65,20.60175389]
[1766122124557,6.01472724,122.68,122.65,20.60175389]
[1766122125260,11.7719211,122.68,122.65,20.60175389]
[1766122125458,11.7719211,122.69,122.65,20.60175389]
[1766122125659,6.01472724,122.68,122.65,20.60175389]
[1766122125859,11.7719211,122.68,122.65,20.60175389]
[1766122126053,11.7719211,122.69,122.65,20.60175389]
[1766122126260,11.7719211,122.68,122.65,20.60175389]
[1766122126460,0.00472724,122.67,122.65,20.60175389]
[1766122126660,5.75719386,122.68,122.65,20.60175389]
[1766122126862,5.75719386,122.69,122.65,20.60175389]
[1766122127162,5.75719386,122.68,122.65,20.60175389]
[1766122127363,5.75719386,122.69,122.65,20.60175389]
[1766122127566,5.75719386,122.68,122.65,20.60175389]
[1766122127764,5.75719386,122.69,122.65,20.60175389]
[1766122127963,5.75719386,122.68,122.65,20.60175389]
[1766122128165,5.75719386,122.69,122.65,20.60175389]
[1766122128366,5.75719386,122.68,122.65,20.60175389]
[1766122128558,5.75719386,122.69,122.65,20.60175389]
[1766122128866,5.75719386,122.68,122.65,20.60175389]
[1766122129067,5.75719386,122.69,122.65,20.60175389]
[1766122129267,5.75719386,122.68,122.65,20.60175389]
[1766122129569,5.75719386,122.69,122.65,20.60175389]
[1766122129760,5.75719386,122.68,122.65,20.60175389]
[1766122129960,5.75719386,122.69,122.65,20.60175389]
[1766122130160,5.75719386,122.68,122.65,20.60175389]
[1766122130357,5.75719386,122.69,122.65,20.60175389]
[1766122130561,5.75719386,122.68,122.65,20.60175389]
[1766122130761,5.75719386,122.69,122.65,20.60175389]
[1766122130962,5.75719386,122.68,122.65,20.60175389]
[1766122131162,5.75719386,122.69,122.65,20.60175389]
[1766122131365,5.75719386,122.68,122.65,20.60175389]
[1766122131668,14.6897,122.7,122.65,20.60175389]
[1766122135167,7.3422,122.66,122.59,20.54]
[1766122136280,0.05206969,122.64,122.61,0.05905967]
[1766122138879,13.46705367,122.64,122.61,0.05905967]
[1766122139074,6.07158398,122.63,122.61,0.05905967]
[1766122139277,9.8978514,122.63,122.54,51.79861071]
[1766122139475,15.96943538,122.63,122.54,51.79861071]
[1766122139675,6.07158398,122.62,122.54,51.79861071]
[1766122139878,13.41608398,122.62,122.54,59.14741071]
[1766122140373,0.0540172,122.59,122.57,0.05491478]
[1766122140573,0.0040172,122.59,122.57,0.05491478]
[1766122151893,11.88826362,122.63,122.57,20.64491478]
[1766122152094,2.5539514,122.63,122.57,20.64491478]
[1766122152295,22.5739514,122.61,122.53,1.41951011]
[1766122152495,70.7539514,122.61,122.53,1.41951011]
[1766122152891,7.3463,122.59,122.53,1.41951011]
[1766122153286,0.00101436,122.57,122.55,0.05746695]
[1766122154588,7.34861436,122.57,122.55,0.05746695]
[1766122154896,0.00101436,122.57,122.51,23.1439514]
[1766122155095,2.5539514,122.6,122.51,23.1439514]
[1766122155496,70.7539514,122.63,122.53,23.1439514]
[1766122155693,70.7539514,122.63,122.57,0.05552213]
[1766122155894,7.345,122.62,122.57,20.64552213]
[1766122156794,0.05369408,122.61,122.57,20.64552213]
[1766122160502,0.00369408,122.61,122.57,20.64552213]
[1766122161205,2.5539514,122.65,122.59,20.59]
[1766122161404,7.3426,122.66,122.59,20.59]
[1766122162206,7.3426,122.66,122.61,0.05559205]
[1766122162508,27.3626,122.66,122.61,0.05559205]
[1766122163811,7.3427,122.65,122.61,0.05559205]
[1766122166111,29.9166514,122.65,122.61,0.05559205]
[1766122167909,7.3427,122.65,122.61,0.05559205]
[1766122169006,27.3627,122.65,122.61,0.05559205]
[1766122170113,78.0966514,122.65,122.61,0.05559205]
[1766122170820,7.3435,122.64,122.61,0.05559205]
[1766122171515,13.16818074,122.67,122.61,23.19954345]
[1766122171716,1.36056014,122.67,122.61,23.19954345]
[1766122172126,20.02,122.69,122.61,23.19954345]
[1766122172316,6.0326465,122.71,122.66,20.59]
[1766122172622,48.18,122.73,122.67,20.6429017]
[1766122172815,22.5739514,122.72,122.6,48.2]
[1766122173006,22.5739514,122.72,122.55,228.6184]
[1766122173007,134.1904,122.71,122.55,228.6184]
[1766122173208,22.5739514,122.68,122.58,2.5539514]
[1766122173424,182.4049,122.67,122.56,7.3477]
[1766122173613,188.4375465,122.67,122.58,2.5539514]
[1766122173921,0.05447338,122.64,122.61,0.05343942]
[1766122174709,7.39787338,122.64,122.61,0.05343942]
[1766122179014,0.05447338,122.64,122.61,0.05343942]
[1766122179319,0.00447338,122.64,122.61,19.94343942]
[1766122180723,0.00447338,122.64,122.62,19.89]
[1766122187227,0.00447338,122.64,122.61,0.05343942]
[1766122191832,0.00447338,122.64,122.61,19.94343942]
[1766122199533,0.00447338,122.64,122.61,0.05343942]
[1766122200741,19.39,122.68,122.61,19.94343942]
[1766122201436,29.15675935,122.72,122.63,8.62]
[1766122201635,23.38178525,122.72,122.66,0.06102622]
[1766122203340,17.16,122.69,122.61,8.19]
[1766122203734,3.99178525,122.68,122.61,8.19]
[1766122204340,0.05501028,122.66,122.63,0.06177433]
[1766122205132,17.21501028,122.66,122.63,0.00177433]
[1766122205327,17.21501028,122.66,122.59,7.88]
[1766122205536,0.05501028,122.66,122.59,7.88]
[1766122206443,0.05501028,122.66,122.61,7.5421967]
[1766122206638,0.06185773,122.65,122.61,14.8871967]
[1766122206834,0.06185773,122.65,122.62,0.05251493]
[1766122207039,17.16,122.69,122.62,7.53251493]
[1766122207346,11.33198525,122.7,122.63,7.13]
[1766122207645,24.5802,122.7,122.63,7.13]
[1766122208037,0.05865235,122.68,122.65,0.05746437]
[1766122208442,21.23178525,122.72,122.65,6.89746437]
[1766122208842,17.24,122.72,122.65,6.89746437]
[1766122209942,5.7749741,122.73,122.65,6.89746437]
[1766122209943,7.3385,122.73,122.65,6.89746437]
[1766122210149,7.3385,122.73,122.68,0.05380601]
[1766122210538,24.5785,122.73,122.68,0.05380601]
[1766122213045,13.08417406,122.77,122.69,5.65]
[1766122213245,17.24,122.79,122.72,0.06048774]
[1766122214246,17.24,122.76,122.72,0.06048774]
[1766122220062,17.24,122.78,122.72,3.87048774]
[1766122221259,17.24,122.77,122.72,0.06048774]
[1766122221453,17.30196588,122.76,122.73,0.00048124]
[1766122223461,24.5768,122.75,122.73,0.00048124]
[1766122224462,17.24,122.74,122.73,0.00048124]
[1766122225061,24.5774,122.74,122.67,51.04]
[1766122225461,7.3379,122.73,122.67,51.04]
[1766122225971,0.05482817,122.71,122.69,0.06048874]
[1766122226168,0.05482817,122.71,122.69,0.00048874]
[1766122226369,17.29482817,122.71,122.69,0.00048874]
[1766122227666,24.63422817,122.71,122.69,0.00048874]
[1766122231975,0.05482817,122.71,122.69,0.00048874]
[1766122232177,17.24,122.76,122.69,1.04048874]
[1766122232882,17.24,122.76,122.69,5.03227399]
[1766122233178,0.05483986,122.74,122.69,5.03227399]
[1766122233378,17.24,122.78,122.72,0.6]
[1766122234271,17.24,122.78,122.74,0.05365671]
[1766122240281,19.4856,122.77,122.74,0.00365671]
[1766122240479,12.15,122.76,122.7,7.3393]
[1766122241288,0.0535456,122.74,122.72,0.05248779]
[1766122245687,12.15,122.81,122.72,116.75608857]
[1766122245895,12.15,122.83,122.75,2.55130078]
[1766122246786,12.15,122.83,122.78,0.05190482]
[1766122247591,7.3326,122.82,122.78,0.05190482]
[1766122248094,19.482,122.83,122.78,0.05190482]
[1766122248787,19.3541751,122.85,122.78,0.05190482]
[1766122248998,2.55130078,122.88,122.79,2.55130078]
[1766122249193,2.55130078,122.88,122.78,0.05190482]
[1766122249194,12.15,122.88,122.82,0.05276767]
[1766122249691,2.55130078,122.9,122.82,0.05276767]
[1766122249894,14.70130078,122.9,122.85,0.05891677]
[1766122251390,12.15,122.9,122.85,0.05891677]
[1766122251591,19.4778,122.9,122.85,0.05891677]
[1766122252197,19.4785,122.89,122.85,0.05891677]
[1766122254098,12.15,122.87,122.8,55.4734]
[1766122254988,7.3292,122.88,122.8,55.4734]
[1766122254989,12.20316732,122.85,122.82,0.00057393]
[1766122255491,7.38416732,122.85,122.82,0.00057393]
[1766122255695,12.15,122.84,122.82,0.00057393]
[1766122256588,19.4814,122.84,122.82,0.00057393]
[1766122257290,12.15,122.83,122.82,0.00057393]
[1766122257902,19.53436732,122.85,122.82,0.00057393]
[1766122258095,0.05316732,122.85,122.82,0.00057393]
[1766122260094,12.20316732,122.85,122.82,0.00057393]
[1766122260602,12.15,122.84,122.82,0.00057393]
[1766122261192,12.15,122.82,122.7,31.2986461]
[1766122261397,12.15,122.81,122.7,48.1]
[1766122261706,19.4856,122.77,122.7,55.4396]
[1766122262302,0.06207889,122.75,122.72,0.05573815]
[1766122266905,9.65207889,122.75,122.65,0.88594957]
[1766122267105,9.59,122.75,122.65,0.88594957]
[1766122267802,0.0529353,122.71,122.69,0.06057781]
[1766122272005,9.59,122.75,122.69,0.06057781]
[1766122272911,0.0544779,122.73,122.69,0.06057781]
[1766122273304,9.6444779,122.73,122.69,0.06057781]
[1766122279104,9.6444779,122.73,122.69,0.00057781]
[1766122280617,7.3392,122.71,122.69,0.00057781]
[1766122280811,9.6444779,122.73,122.69,0.00057781]
[1766122281712,9.59,122.71,122.69,0.00057781]
[1766122286331,16.9291,122.71,122.69,0.00057781]
[1766122289432,9.59,122.69,122.64,48.12]
[1766122289727,9.59,122.71,122.64,48.12]
[1766122290524,0.05444819,122.69,122.66,0.05854835]
[1766122294626,9.64444819,122.69,122.64,55.4628]
[1766122294827,9.64444819,122.69,122.64,48.12]
[1766122295028,0.05444819,122.69,122.64,48.12]
[1766122295229,0.05444819,122.69,122.64,50.67209049]
[1766122295530,0.05444819,122.69,122.65,7.3426]
[1766122295732,0.05444819,122.69,122.66,0.05401146]
[1766122296127,8.28208026,122.71,122.66,7.39601146]
[1766122296328,8.28208026,122.71,122.66,9.94810195]
[1766122296926,2.55209049,122.76,122.66,2.60610195]
[1766122297124,2.55209049,122.76,122.66,2.55209049]
[1766122297329,0.05694039,122.72,122.7,0.05982892]
[1766122297528,0.05694039,122.72,122.66,2.55209049]
[1766122298630,0.05694039,122.72,122.68,0.05438139]
[1766122300233,0.05694039,122.72,122.68,7.39518139]
[1766122301318,8.36,122.76,122.68,0.05438139]
[1766122301530,8.36,122.8,122.74,2.55209049]
[1766122302430,0.05158674,122.78,122.76,0.06036323]
[1766122302932,0.05158674,122.78,122.76,0.00036323]
[1766122303134,8.41158674,122.78,122.72,2.55209049]
[1766122303330,8.36,122.78,122.71,2.55209049]
[1766122303530,8.36,122.78,122.7,7.3391]
[1766122304136,0.05395199,122.75,122.73,0.06121844]
[1766122305032,8.36,122.78,122.73,0.06121844]
[1766122306038,0.05983544,122.77,122.73,0.06121844]
[1766122306227,8.41983544,122.77,122.73,0.06121844]
[1766122308131,0.05983544,122.77,122.73,7.39901844]
[1766122308539,8.41983544,122.77,122.73,0.06121844]
[1766122309427,8.41983544,122.77,122.69,48.16]
[1766122309624,8.36,122.77,122.69,48.16]
[1766122309830,8.36,122.74,122.69,48.16]
[1766122310426,0.05673231,122.73,122.7,0.05782232]
[1766122313447,8.41673231,122.73,122.7,0.05782232]
[1766122313944,8.41673231,122.73,122.65,55.4821]
[1766122314146,8.36,122.73,122.65,55.4821]
[1766122314538,8.36,122.72,122.65,48.14]
[1766122314939,8.41569486,122.7,122.65,48.14]
[1766122315145,8.41569486,122.7,122.62,1.27208183]
[1766122315344,8.36,122.7,122.62,1.27208183]
[1766122315548,8.36,122.68,122.6,48.14]
[1766122315739,8.36,122.65,122.55,276.7564]
[1766122315940,0.00389126,122.61,122.59,0.05716939]
[1766122316242,8.36,122.65,122.59,0.05716939]
[1766122316654,8.36,122.68,122.59,0.05716939]
[1766122316855,8.36,122.68,122.58,114.2816]
[1766122317043,0.05705732,122.64,122.62,0.05542296]
[1766122319356,8.36,122.67,122.62,0.05542296]
[1766122319659,8.36,122.67,122.6,55.4853]
[1766122320257,0.05405994,122.65,122.62,0.0589922]
[1766122321063,0.00405994,122.65,122.62,0.0589922]
[1766122322067,8.36405994,122.65,122.55,114.3119]
[1766122322262,8.36,122.65,122.55,114.3119]
[1766122322965,0.05945165,122.61,122.59,0.05821284]
[1766122324062,0.05945165,122.61,122.53,48.16]
[1766122324265,14.5446,122.62,122.53,55.5094]
[1766122324866,0.05942208,122.59,122.56,0.06212078]
[1766122326157,7.15942208,122.59,122.56,0.06212078]
[1766122327962,7.1,122.58,122.53,48.16]
[1766122328961,7.1,122.58,122.54,0.05475791]
[1766122329865,7.1,122.58,122.54,0.00475791]
[1766122331765,7.1,122.57,122.49,48.18]
[1766122332571,14.4482,122.56,122.49,48.18]
[1766122332869,0.05529061,122.54,122.51,0.05793197]
[1766122336982,7.1,122.57,122.51,0.05793197]
[1766122338076,0.06229702,122.55,122.51,0.05793197]
[1766122341082,7.3466,122.59,122.51,0.05793197]
[1766122341278,7.3466,122.59,122.49,162.5468]
[1766122341774,7.3466,122.59,122.52,7.3504]
[1766122342169,0.05237211,122.57,122.54,0.0520993]
[1766122352186,0.00237211,122.57,122.54,7.4009993]
[1766122352387,0.00237211,122.57,122.54,0.0520993]
[1766122353089,0.00237211,122.57,122.55,7.3486]
[1766122353495,0.88631586,122.63,122.54,0.0520993]
[1766122353496,7.1,122.6,122.54,0.0520993]
[1766122353688,7.1,122.6,122.53,3.99543228]
[1766122353984,7.1,122.58,122.51,3.99543228]